[Event "51st La Roda Open 2025"]
[Site "La Roda"]
[Date "2025.04.16"]
[Round "2.9"]
[White "Talavera Garcia, Santiago"]
[Black "Yordanov, Lachezar"]
[Result "0-1"]
[Annotator "RC"]
[ECO "B90"]
[WhiteElo "2024"]
[BlackElo "2364"]
[PlyCount "70"]
[EventDate "2025.04.15"]
[EventType "swiss"]
[EventCountry "ESP"]
[SourceTitle "playchess.com"]
[Source "ChessBase"]
[SourceQuality "1"]
[TimeControl "5400+30"]

1. e4 {[%emt 0:02:38]} c5 {[%emt 0:00:07]} 2. Nf3 {[%emt 0:00:16]} d6 {[%emt 0:00:07]} 3. d4 {[%emt 0:00:14]} cxd4 {[%emt 0:00:07]} 4. Nxd4 {[%emt 0:00:11]} Nf6 {[%emt 0:00:07]} 5. Nc3 {[%emt 0:00:10]} a6 {[%emt 0:00:05]} 6. h3 {[%emt 0:00:42]} e5 {[%emt 0:00:14]} 7. Nb3 {[%emt 0:00:38]} Be7 {[%emt 0:01:00]} 8. Be3 {[%emt 0:03:24]} h6 {[%emt 0:01:11]} 9. Qf3 {[%emt 0:03:21]} Nbd7 {[%emt 0:01:38]} 10. O-O-O {[%emt 0:03:06]} b5 {[%emt 0:06:06]} 11. g4 {[%emt 0:08:43]} Nf8 {[%emt 0:11:11]} 12. Kb1 {[%emt 0:20:50]} Ng6 {[%emt 0:00:37]} 13. Bd3 {[%emt 0:22:48]} Be6 {[%emt 0:04:59]} 14. Nd5 {[%emt 0:06:07]} Bxd5 {[%emt 0:01:08]} 15. exd5 {[%emt 0:00:08]} e4 {[%emt 0:00:25]} 16. Bxe4 {[%emt 0:02:13]} Nh4 {[%emt 0:00:06]} 17. Qe2 {[%emt 0:02:01]} Nxe4 {[%emt 0:00:08]} 18. Bd4 {[%emt 0:01:43]} Nf6 {[%emt 0:02:08]} 19. Bxf6 {[%emt 0:00:29]} gxf6 {[%emt 0:00:05]} 20. Nd4 {[%emt 0:00:36]} Kf8 {[%emt 0:02:33]} 21. Rhe1 {[%emt 0:10:32]} Qd7 {[%emt 0:00:09]} 22. f4 {[%emt 0:02:06]} f5 {[%emt 0:00:56]} 23. gxf5 {[%emt 0:07:39]} Bf6 {[%emt 0:01:25]} 24. Nc6 {[%emt 0:01:19]} Re8 {[%emt 0:01:52]} 25. Qh5 {[%emt 0:00:21]} Rxe1 {[%emt 0:01:34]} 26. Rxe1 {[%emt 0:00:04]} Qxf5 {[%emt 0:00:25]} 27. Qxf5 {[%emt 0:00:36]} Nxf5 {[%emt 0:00:02]} 28. Nb8 {[%emt 0:00:07]} Bh4 {[%emt 0:00:57]} 29. Rd1 {[%emt 0:01:11]} Rg8 {[%emt 0:00:31]} 30. Nxa6 {[%emt 0:00:40]} Ne3 {[%emt 0:00:20]} 31. Rh1 {[%emt 0:00:22]} Nxd5 {[%emt 0:00:08]} 32. c3 {[%emt 0:00:27]} Bf2 {[%emt 0:00:20]} 33. Kc2 {[%emt 0:00:20]} Rg2 {[%emt 0:00:31]} 34. Kb3 {[%emt 0:00:09]} Bg1 {[%emt 0:01:32]} 35. c4 {[%emt 0:00:42]} Rg3+ {[%emt 0:00:10]} 0-1

[Event "51st La Roda Open 2025"]
[Site "La Roda"]
[Date "2025.04.16"]
[Round "2.10"]
[White "Sierra Vallina, Lionel"]
[Black "Mellado Sais, Carles"]
[Result "1-0"]
[Annotator "RC"]
[ECO "B53"]
[WhiteElo "2342"]
[BlackElo "2019"]
[PlyCount "119"]
[EventDate "2025.04.15"]
[EventType "swiss"]
[EventCountry "ESP"]
[SourceTitle "playchess.com"]
[Source "ChessBase"]
[SourceQuality "1"]
[TimeControl "5400+30"]

1. e4 {[%emt 0:00:03]} c5 {[%emt 0:00:03]} 2. Nf3 {[%emt 0:00:12]} d6 {[%emt 0:00:04]} 3. Nc3 {[%emt 0:00:30]} Nf6 {[%emt 0:00:18]} 4. d4 {[%emt 0:00:06]} cxd4 {[%emt 0:00:05]} 5. Qxd4 {[%emt 0:00:05]} Nc6 {[%emt 0:01:14]} 6. Qe3 {[%emt 0:00:08]} g6 {[%emt 0:01:10]} 7. h3 {[%emt 0:00:09]} Bg7 {[%emt 0:00:34]} 8. Bc4 {[%emt 0:00:09]} O-O {[%emt 0:01:09]} 9. O-O {[%emt 0:00:07]} a6 {[%emt 0:00:59]} 10. a4 {[%emt 0:00:08]} b6 {[%emt 0:03:06]} 11. Qe2 {[%emt 0:00:43]} Bb7 {[%emt 0:01:49]} 12. Re1 {[%emt 0:23:16]} Nd7 {[%emt 0:06:30]} 13. Bg5 {[%emt 0:07:44]} Nc5 {[%emt 0:04:10]} 14. Qe3 {[%emt 0:13:54]} Ne5 {[%emt 0:05:25]} 15. Nxe5 {[%emt 0:03:42]} Bxe5 {[%emt 0:01:26]} 16. Bh6 {[%emt 0:06:36]} Re8 {[%emt 0:07:55]} 17. f4 {[%emt 0:07:25]} Bh8 {[%emt 0:03:11]} 18. f5 {[%emt 0:01:24]} e6 {[%emt 0:07:47]} 19. fxe6 {[%emt 0:11:52]} Nxe6 {[%emt 0:02:22]} 20. Rad1 {[%emt 0:00:24]} Rc8 {[%emt 0:03:37]} 21. Bb3 {[%emt 0:04:02]} Nc5 {[%emt 0:04:31]} 22. Ba2 {[%emt 0:00:19]} Rc7 {[%emt 0:11:49]} 23. Qf4 {[%emt 0:10:48]} Be5 {[%emt 0:02:21]} 24. Qf2 {[%emt 0:00:01]} Bxc3 {[%emt 0:04:15]} 25. bxc3 {[%emt 0:00:06]} Rxe4 {[%emt 0:01:49]} 26. Rxe4 {[%emt 0:00:32]} Nxe4 {[%emt 0:02:35]} 27. Qd4 {[%emt 0:00:05]} Qf6 {[%emt 0:01:26]} 28. Qxf6 {[%emt 0:00:05]} Nxf6 {[%emt 0:00:01]} 29. Rxd6 {[%emt 0:00:06]} Nd7 {[%emt 0:00:50]} 30. Bb3 {[%emt 0:07:23]} Bc6 {[%emt 0:01:22]} 31. Rd2 {[%emt 0:01:26]} Be4 {[%emt 0:02:45]} 32. g4 {[%emt 0:00:25]} Bc6 {[%emt 0:01:32]} 33. Kf2 {[%emt 0:00:15]} Rc8 {[%emt 0:01:08]} 34. Rd6 {[%emt 0:01:07]} Nc5 {[%emt 0:00:27]} 35. Kg1 {[%emt 0:01:08]} Nxa4 {[%emt 0:02:21]} 36. Bxa4 {[%emt 0:01:21]} Bxa4 {[%emt 0:00:18]} 37. Rxb6 {[%emt 0:00:05]} Bxc2 {[%emt 0:00:47]} 38. Rxa6 {[%emt 0:00:36]} f5 {[%emt 0:00:25]} 39. Ra7 {[%emt 0:00:52]} fxg4 {[%emt 0:00:45]} 40. hxg4 {[%emt 0:00:14]} Bd1 {[%emt 0:00:41]} 41. g5 {[%emt 0:00:13]} Bg4 {[%emt 0:01:06]} 42. Bg7 {[%emt 0:00:59]} Be6 {[%emt 0:00:58]} 43. Bf6 {[%emt 0:00:08]} Bf7 {[%emt 0:00:43]} 44. Kf2 {[%emt 0:00:09]} Re8 {[%emt 0:00:47]} 45. Rc7 {[%emt 0:00:24]} Re6 {[%emt 0:00:37]} 46. Bd4 {[%emt 0:01:30]} Kf8 {[%emt 0:01:09]} 47. Kf3 {[%emt 0:00:24]} Re1 {[%emt 0:02:09]} 48. c4 {[%emt 0:00:32]} Rc1 {[%emt 0:01:20]} 49. c5 {[%emt 0:00:04]} Rc2 {[%emt 0:01:48]} 50. Ke4 {[%emt 0:00:09]} Rc1 {[%emt 0:00:45]} 51. Be3 {[%emt 0:00:28]} Rc4+ {[%emt 0:01:25]} 52. Ke5 {[%emt 0:00:14]} Ra4 {[%emt 0:02:07]} 53. Kf6 {[%emt 0:00:18]} Ra6+ {[%emt 0:00:47]} 54. c6 {[%emt 0:00:05]} Be8 {[%emt 0:00:35]} 55. Bc5+ {[%emt 0:00:45]} Kg8 {[%emt 0:00:04]} 56. Rg7+ {[%emt 0:00:38]} Kh8 {[%emt 0:00:01]} 57. Bd4 {[%emt 0:00:47]} Bxc6 {[%emt 0:02:58]} 58. Rc7 {[%emt 0:01:23]} h5 {[%emt 0:03:47]} 59. Kf7+ {[%emt 0:00:11]} Kh7 {[%emt 0:00:15]} 60. Kf8+ {[%emt 0:00:05]} 1-0

[Event "51st La Roda Open 2025"]
[Site "La Roda"]
[Date "2025.04.16"]
[Round "2.11"]
[White "Juan Lepp, Jaime Boris"]
[Black "Centron Antuna, Daniel"]
[Result "0-1"]
[Annotator "RC"]
[ECO "C01"]
[WhiteElo "2015"]
[BlackElo "2299"]
[PlyCount "44"]
[EventDate "2025.04.15"]
[EventType "swiss"]
[EventCountry "ESP"]
[SourceTitle "playchess.com"]
[Source "ChessBase"]
[SourceQuality "1"]
[TimeControl "5400+30"]

1. e4 {[%emt 0:00:03]} e6 {[%emt 0:03:16]} 2. d4 {[%emt 0:01:16]} d5 {[%emt 0:00:07]} 3. Nc3 {[%emt 0:00:36]} Bb4 {[%emt 0:00:20]} 4. exd5 {[%emt 0:08:21]} exd5 {[%emt 0:00:07]} 5. Bd3 {[%emt 0:00:03]} Nc6 {[%emt 0:00:08]} 6. Nge2 {[%emt 0:00:34]} Nge7 {[%emt 0:01:42]} 7. O-O {[%emt 0:00:32]} Bxc3 {[%emt 0:06:41]} 8. bxc3 {[%emt 0:00:16]} Bf5 {[%emt 0:00:58]} 9. Ba3 {[%emt 0:07:50]} Qd7 {[%emt 0:12:37]} 10. c4 {[%emt 0:04:41]} Bxd3 {[%emt 0:10:27]} 11. Qxd3 {[%emt 0:00:20]} dxc4 {[%emt 0:00:39]} 12. Qxc4 {[%emt 0:00:12]} O-O {[%emt 0:00:59]} 13. d5 {[%emt 0:02:14]} Ne5 {[%emt 0:00:35]} 14. Qd4 {[%emt 0:01:40]} Rfe8 {[%emt 0:10:47]} 15. Bxe7 {[%emt 0:16:39]} Rxe7 {[%emt 0:02:04]} 16. Nf4 {[%emt 0:05:40]} Qf5 {[%emt 0:05:37]} 17. Rfe1 {[%emt 0:19:50]} Rae8 {[%emt 0:02:42]} 18. Re3 {[%emt 0:06:46]} Qxc2 {[%emt 0:07:14]} 19. Qxa7 {[%emt 0:02:30]} b6 {[%emt 0:01:15]} 20. Rae1 {[%emt 0:04:38]} Ng4 {[%emt 0:03:03]} 21. R3e2 {[%emt 0:05:43]} Rxe2 {[%emt 0:00:17]} 22. Nxe2 {[%emt 0:00:08]} Qd2 {[%emt 0:00:12]} 0-1

[Event "51st La Roda Open 2025"]
[Site "La Roda"]
[Date "2025.04.16"]
[Round "2.12"]
[White "Gonzalez Castillo, Jose Javier"]
[Black "Del Rosario Silva, Dexnisi"]
[Result "1-0"]
[Annotator "RC"]
[ECO "C10"]
[WhiteElo "2297"]
[BlackElo "2013"]
[PlyCount "121"]
[EventDate "2025.04.15"]
[EventType "swiss"]
[EventCountry "ESP"]
[SourceTitle "playchess.com"]
[Source "ChessBase"]
[SourceQuality "1"]
[TimeControl "5400+30"]

1. e4 {[%emt 0:03:58]} e6 {[%emt 0:00:07]} 2. d4 {[%emt 0:00:53]} d5 {[%emt 0:00:01]} 3. Nc3 {[%emt 0:00:50]} dxe4 {[%emt 0:00:30]} 4. Nxe4 {[%emt 0:00:11]} Nd7 {[%emt 0:00:01]} 5. Nf3 {[%emt 0:01:41]} Ngf6 {[%emt 0:00:01]} 6. Nxf6+ {[%emt 0:00:09]} Nxf6 {[%emt 0:00:07]} 7. Bd3 {[%emt 0:00:03]} c5 {[%emt 0:00:06]} 8. Be3 {[%emt 0:00:44]} Qc7 {[%emt 0:01:30]} 9. Qe2 {[%emt 0:02:00]} a6 {[%emt 0:03:11]} 10. O-O {[%emt 0:09:29]} Bd6 {[%emt 0:05:41]} 11. Rad1 {[%emt 0:05:24]} O-O {[%emt 0:04:54]} 12. Rfe1 {[%emt 0:02:52]} Bd7 {[%emt 0:26:22]} 13. c3 {[%emt 0:06:16]} Bc6 {[%emt 0:04:38]} 14. h3 {[%emt 0:01:45]} Bxf3 {[%emt 0:04:33]} 15. Qxf3 {[%emt 0:00:59]} c4 {[%emt 0:09:57]} 16. Bc2 {[%emt 0:01:35]} Rad8 {[%emt 0:01:05]} 17. Bg5 {[%emt 0:07:27]} Be7 {[%emt 0:00:22]} 18. Bf4 {[%emt 0:04:20]} Qb6 {[%emt 0:01:11]} 19. b3 {[%emt 0:02:30]} cxb3 {[%emt 0:03:12]} 20. axb3 {[%emt 0:03:17]} Nd5 {[%emt 0:05:47]} 21. Qd3 {[%emt 0:03:52]} g6 {[%emt 0:00:30]} 22. Bh6 {[%emt 0:00:06]} Rfe8 {[%emt 0:00:03]} 23. Qf3 {[%emt 0:01:00]} Bf8 {[%emt 0:09:35]} 24. Bxf8 {[%emt 0:01:59]} Rxf8 {[%emt 0:00:18]} 25. h4 {[%emt 0:00:39]} h5 {[%emt 0:05:37]} 26. Re5 {[%emt 0:01:21]} Qc7 {[%emt 0:01:28]} 27. Rg5 {[%emt 0:04:54]} Kg7 {[%emt 0:02:22]} 28. Qxh5 {[%emt 0:06:09]} Rh8 {[%emt 0:00:05]} 29. Qg4 {[%emt 0:01:16]} Qf4 {[%emt 0:00:56]} 30. c4 {[%emt 0:02:27]} Qxg4 {[%emt 0:00:23]} 31. Rxg4 {[%emt 0:00:01]} Nf6 {[%emt 0:00:15]} 32. Rf4 {[%emt 0:00:22]} Rh5 {[%emt 0:01:19]} 33. Rd3 {[%emt 0:05:43]} Rd7 {[%emt 0:00:59]} 34. g3 {[%emt 0:02:22]} Ra5 {[%emt 0:00:42]} 35. Rff3 {[%emt 0:04:49]} Ra2 {[%emt 0:00:48]} 36. Bd1 {[%emt 0:00:14]} Ne4 {[%emt 0:01:14]} 37. Kg2 {[%emt 0:03:59]} Rb2 {[%emt 0:04:18]} 38. Rf4 {[%emt 0:01:46]} f5 {[%emt 0:00:20]} 39. Rff3 {[%emt 0:01:37]} Kf6 {[%emt 0:01:19]} 40. g4 {[%emt 0:01:32]} Rh7 {[%emt 0:01:04]} 41. Rde3 {[%emt 0:08:29]} Nd2 {[%emt 0:00:57]} 42. Rh3 {[%emt 0:00:00]} Ne4 {[%emt 0:03:42]} 43. Re2 {[%emt 0:00:00]} fxg4 {[%emt 0:00:00]} 44. Rhe3 {[%emt 0:00:00]} Rxe2 {[%emt 0:00:00]} 45. Bxe2 {[%emt 0:00:00]} Nd6 {[%emt 0:00:00]} 46. Bxg4 {[%emt 0:00:00]} Nf5 {[%emt 0:00:00]} 47. Bxf5 {[%emt 0:00:00]} gxf5 {[%emt 0:00:23]} 48. Rh3 {[%emt 0:00:00]} Rd7 {[%emt 0:00:26]} 49. Rd3 {[%emt 0:00:00]} Rg7+ {[%emt 0:00:26]} 50. Kh3 {[%emt 0:00:53]} Rg1 {[%emt 0:00:48]} 51. d5 {[%emt 0:00:25]} exd5 {[%emt 0:00:29]} 52. cxd5 {[%emt 0:00:01]} Rg7 {[%emt 0:01:14]} 53. d6 {[%emt 0:00:39]} Rd7 {[%emt 0:00:02]} 54. Kg3 {[%emt 0:00:05]} a5 {[%emt 0:00:52]} 55. Kf4 {[%emt 0:00:16]} Ke6 {[%emt 0:00:45]} 56. h5 {[%emt 0:00:17]} b5 {[%emt 0:00:15]} 57. h6 {[%emt 0:00:15]} a4 {[%emt 0:00:22]} 58. bxa4 {[%emt 0:00:05]} bxa4 {[%emt 0:00:04]} 59. Kg5 {[%emt 0:01:04]} Kf7 {[%emt 0:01:41]} 60. Kxf5 {[%emt 0:00:39]} a3 {[%emt 0:00:03]} 61. h7 {[%emt 0:00:39]} 1-0

[Event "51st La Roda Open 2025"]
[Site "La Roda"]
[Date "2025.04.16"]
[Round "2.13"]
[White "Carrillo Haro, Jorge"]
[Black "Gomez Falagan, Daniel"]
[Result "0-1"]
[Annotator "RC"]
[ECO "E51"]
[WhiteElo "2009"]
[BlackElo "2254"]
[PlyCount "94"]
[EventDate "2025.04.15"]
[EventType "swiss"]
[EventCountry "ESP"]
[SourceTitle "playchess.com"]
[Source "ChessBase"]
[SourceQuality "1"]
[TimeControl "5400+30"]

1. c4 {[%emt 0:00:04]} e6 {[%emt 0:00:07]} 2. Nc3 {[%emt 0:00:05]} d5 {[%emt 0:00:07]} 3. d4 {[%emt 0:00:34]} Nf6 {[%emt 0:00:08]} 4. Nf3 {[%emt 0:00:23]} Bb4 {[%emt 0:00:09]} 5. Bd2 {[%emt 0:01:32]} O-O {[%emt 0:01:00]} 6. e3 {[%emt 0:00:11]} b6 {[%emt 0:02:24]} 7. cxd5 {[%emt 0:01:15]} exd5 {[%emt 0:00:09]} 8. Be2 {[%emt 0:01:40]} Bb7 {[%emt 0:05:28]} 9. O-O {[%emt 0:02:33]} Bd6 {[%emt 0:01:02]} 10. Nb5 {[%emt 0:09:14]} Be7 {[%emt 0:00:47]} 11. a4 {[%emt 0:11:12]} a6 {[%emt 0:14:41]} 12. Na3 {[%emt 0:02:05]} Bd6 {[%emt 0:02:21]} 13. b4 {[%emt 0:10:26]} Qe7 {[%emt 0:10:52]} 14. Qb3 {[%emt 0:06:04]} c6 {[%emt 0:00:42]} 15. Rfc1 {[%emt 0:09:48]} Ne4 {[%emt 0:03:25]} 16. Be1 {[%emt 0:04:35]} Nd7 {[%emt 0:01:07]} 17. Nc2 {[%emt 0:01:25]} f5 {[%emt 0:10:29]} 18. Bd3 {[%emt 0:03:42]} Qe6 {[%emt 0:09:44]} 19. Nd2 {[%emt 0:06:04]} Ndf6 {[%emt 0:05:25]} 20. Nf1 {[%emt 0:03:08]} Rab8 {[%emt 0:04:16]} 21. f3 {[%emt 0:00:25]} Ng5 {[%emt 0:00:38]} 22. Bh4 {[%emt 0:00:39]} Nf7 {[%emt 0:00:27]} 23. Bg3 {[%emt 0:01:59]} Rbe8 {[%emt 0:02:31]} 24. Re1 {[%emt 0:02:33]} Qd7 {[%emt 0:02:04]} 25. Bxd6 {[%emt 0:04:39]} Nxd6 {[%emt 0:00:08]} 26. Nd2 {[%emt 0:00:18]} Kh8 {[%emt 0:00:49]} 27. Qc3 {[%emt 0:00:34]} Nh5 {[%emt 0:04:49]} 28. a5 {[%emt 0:01:03]} b5 {[%emt 0:02:07]} 29. Nb3 {[%emt 0:02:49]} f4 {[%emt 0:01:52]} 30. Nc5 {[%emt 0:01:05]} Qc7 {[%emt 0:00:10]} 31. e4 {[%emt 0:00:10]} dxe4 {[%emt 0:00:35]} 32. Bxe4 {[%emt 0:00:37]} Bc8 {[%emt 0:00:48]} 33. Qd3 {[%emt 0:02:06]} Nf6 {[%emt 0:00:20]} 34. Rad1 {[%emt 0:03:02]} Nfxe4 {[%emt 0:03:48]} 35. fxe4 {[%emt 0:00:12]} Bg4 {[%emt 0:00:05]} 36. Rd2 {[%emt 0:00:37]} f3 {[%emt 0:01:12]} 37. Rf1 {[%emt 0:00:24]} fxg2 {[%emt 0:00:56]} 38. Rxf8+ {[%emt 0:03:12]} Rxf8 {[%emt 0:00:06]} 39. Rxg2 {[%emt 0:00:02]} Rf3 {[%emt 0:05:04]} 40. Qd2 {[%emt 0:02:36]} Qf7 {[%emt 0:01:22]} 41. Qe1 {[%emt 0:03:39]} Bh3 {[%emt 0:01:56]} 42. Rf2 {[%emt 0:00:18]} Qg6+ {[%emt 0:01:33]} 43. Kh1 {[%emt 0:00:03]} Nxe4 {[%emt 0:00:33]} 44. Nxe4 {[%emt 0:00:45]} Rxf2 {[%emt 0:00:05]} 45. Qxf2 {[%emt 0:00:25]} Qxe4+ {[%emt 0:00:06]} 46. Kg1 {[%emt 0:00:05]} h6 {[%emt 0:01:40]} 47. Qe3 {[%emt 0:02:45]} Qg2# {[%emt 0:00:06]} 0-1

[Event "51st La Roda Open 2025"]
[Site "La Roda"]
[Date "2025.04.16"]
[Round "2.14"]
[White "Goncalves, Samuel Jesus P"]
[Black "Diaz Rodriguez, Jose Antonio"]
[Result "1-0"]
[Annotator "RC"]
[ECO "B08"]
[WhiteElo "2248"]
[BlackElo "2006"]
[PlyCount "79"]
[EventDate "2025.04.15"]
[EventType "swiss"]
[EventCountry "ESP"]
[SourceTitle "playchess.com"]
[Source "ChessBase"]
[SourceQuality "1"]
[TimeControl "5400+30"]

1. e4 {[%emt 0:00:06]} g6 {[%emt 0:00:24]} 2. d4 {[%emt 0:00:39]} Bg7 {[%emt 0:00:03]} 3. Nc3 {[%emt 0:01:19]} d6 {[%emt 0:00:20]} 4. Be3 {[%emt 0:00:11]} c6 {[%emt 0:00:35]} 5. Nf3 {[%emt 0:03:01]} Nf6 {[%emt 0:03:04]} 6. Qd2 {[%emt 0:02:11]} b5 {[%emt 0:03:32]} 7. Bd3 {[%emt 0:00:11]} Ng4 {[%emt 0:05:05]} 8. Bg5 {[%emt 0:00:11]} h6 {[%emt 0:01:29]} 9. Bh4 {[%emt 0:00:08]} a5 {[%emt 0:04:00]} 10. a3 {[%emt 0:05:03]} g5 {[%emt 0:01:19]} 11. Bg3 {[%emt 0:00:46]} Qb6 {[%emt 0:02:47]} 12. e5 {[%emt 0:09:01]} f5 {[%emt 0:06:41]} 13. exf6 {[%emt 0:06:58]} Nxf6 {[%emt 0:02:44]} 14. Bg6+ {[%emt 0:00:09]} Kd8 {[%emt 0:00:38]} 15. O-O {[%emt 0:00:55]} Qc7 {[%emt 0:07:35]} 16. Rfe1 {[%emt 0:01:16]} Nbd7 {[%emt 0:01:00]} 17. Ne5 {[%emt 0:03:44]} dxe5 {[%emt 0:06:21]} 18. dxe5 {[%emt 0:00:07]} Nd5 {[%emt 0:00:47]} 19. e6 {[%emt 0:01:22]} Qb7 {[%emt 0:02:37]} 20. exd7 {[%emt 0:02:13]} Bxd7 {[%emt 0:02:35]} 21. Nxd5 {[%emt 0:09:20]} cxd5 {[%emt 0:00:35]} 22. Bf7 {[%emt 0:00:07]} d4 {[%emt 0:04:50]} 23. Be5 {[%emt 0:07:34]} Rf8 {[%emt 0:02:15]} 24. Be6 {[%emt 0:02:29]} Bxe5 {[%emt 0:03:34]} 25. Rxe5 {[%emt 0:00:21]} Bxe6 {[%emt 0:07:34]} 26. Rxe6 {[%emt 0:00:05]} Ra6 {[%emt 0:04:38]} 27. Qxd4+ {[%emt 0:00:33]} Ke8 {[%emt 0:00:16]} 28. Qe3 {[%emt 0:08:36]} Rxe6 {[%emt 0:06:13]} 29. Qxe6 {[%emt 0:00:07]} Rf6 {[%emt 0:00:13]} 30. Qg8+ {[%emt 0:36:47]} Rf8 {[%emt 0:03:43]} 31. Qg6+ {[%emt 0:00:00]} Rf7 {[%emt 0:00:45]} 32. Qxh6 {[%emt 0:00:00]} Qa7 {[%emt 0:01:04]} 33. Qc6+ {[%emt 0:00:00]} Kf8 {[%emt 0:00:11]} 34. Rf1 {[%emt 0:00:00]} Qb8 {[%emt 0:04:01]} 35. Qh6+ {[%emt 0:00:00]} Rg7 {[%emt 0:00:38]} 36. Qh8+ {[%emt 0:00:00]} Rg8 {[%emt 0:00:17]} 37. Qd4 {[%emt 0:00:00]} Rg6 {[%emt 0:01:21]} 38. Rd1 {[%emt 0:00:00]} Kf7 {[%emt 0:01:48]} 39. Qd5+ {[%emt 0:00:00]} Kg7 {[%emt 0:02:51]} 40. Re1 {[%emt 0:00:00]} 1-0

[Event "51st La Roda Open 2025"]
[Site "La Roda"]
[Date "2025.04.16"]
[Round "2.15"]
[White "Gomez Falagan, Hugo"]
[Black "Garcia Jimenez, Santiago"]
[Result "0-1"]
[Annotator "RC"]
[ECO "B12"]
[WhiteElo "2000"]
[BlackElo "2241"]
[PlyCount "56"]
[EventDate "2025.04.15"]
[EventType "swiss"]
[EventCountry "ESP"]
[SourceTitle "playchess.com"]
[Source "ChessBase"]
[SourceQuality "1"]
[TimeControl "5400+30"]

1. e4 {[%emt 0:00:02]} c6 {[%emt 0:05:02]} 2. d4 {[%emt 0:00:06]} d5 {[%emt 0:00:09]} 3. e5 {[%emt 0:00:06]} c5 {[%emt 0:00:05]} 4. Nf3 {[%emt 0:00:05]} Nc6 {[%emt 0:00:05]} 5. dxc5 {[%emt 0:00:16]} Bg4 {[%emt 0:00:05]} 6. Bb5 {[%emt 0:02:07]} Qa5+ {[%emt 0:02:42]} 7. Nc3 {[%emt 0:00:12]} e6 {[%emt 0:00:05]} 8. Be3 {[%emt 0:04:02]} Nge7 {[%emt 0:00:25]} 9. a3 {[%emt 0:13:08]} Nf5 {[%emt 0:07:07]} 10. b4 {[%emt 0:03:11]} Qc7 {[%emt 0:00:09]} 11. Bf4 {[%emt 0:03:17]} g5 {[%emt 0:12:52]} 12. Bxg5 {[%emt 0:08:04]} Bxf3 {[%emt 0:00:42]} 13. Qxf3 {[%emt 0:06:29]} Qxe5+ {[%emt 0:00:13]} 14. Kf1 {[%emt 0:05:00]} Bg7 {[%emt 0:02:19]} 15. Bd2 {[%emt 0:05:07]} Nfd4 {[%emt 0:07:36]} 16. Bxc6+ {[%emt 0:03:00]} bxc6 {[%emt 0:00:28]} 17. Qd3 {[%emt 0:01:24]} O-O {[%emt 0:02:03]} 18. g3 {[%emt 0:02:36]} Qh5 {[%emt 0:07:55]} 19. Kg2 {[%emt 0:01:41]} e5 {[%emt 0:00:15]} 20. f3 {[%emt 0:06:12]} f5 {[%emt 0:03:08]} 21. f4 {[%emt 0:08:21]} e4 {[%emt 0:01:34]} 22. Qf1 {[%emt 0:00:25]} Nxc2 {[%emt 0:04:32]} 23. Ra2 {[%emt 0:00:32]} Nd4 {[%emt 0:00:36]} 24. Qd1 {[%emt 0:01:43]} Nf3 {[%emt 0:01:15]} 25. a4 {[%emt 0:04:11]} d4 {[%emt 0:01:22]} 26. Qb3+ {[%emt 0:00:23]} Kh8 {[%emt 0:00:34]} 27. Nd1 {[%emt 0:00:26]} d3 {[%emt 0:06:30]} 28. Bc3 {[%emt 0:07:00]} Nd4 {[%emt 0:00:41]} 0-1

[Event "51st La Roda Open 2025"]
[Site "La Roda"]
[Date "2025.04.16"]
[Round "2.16"]
[White "Aishwin Daniel"]
[Black "Romera Carrion, Ruben"]
[Result "1/2-1/2"]
[Annotator "RC"]
[ECO "C11"]
[WhiteElo "2236"]
[BlackElo "1995"]
[PlyCount "78"]
[EventDate "2025.04.15"]
[EventType "swiss"]
[EventCountry "ESP"]
[SourceTitle "playchess.com"]
[Source "ChessBase"]
[SourceQuality "1"]
[TimeControl "5400+30"]

1. e4 {[%emt 0:00:02]} e6 {[%emt 0:05:58]} 2. d4 {[%emt 0:00:09]} d5 {[%emt 0:00:02]} 3. Nc3 {[%emt 0:00:16]} Nf6 {[%emt 0:00:32]} 4. e5 {[%emt 0:00:36]} Nfd7 {[%emt 0:00:02]} 5. f4 {[%emt 0:00:25]} c5 {[%emt 0:00:02]} 6. Nf3 {[%emt 0:00:12]} Nc6 {[%emt 0:00:11]} 7. Be3 {[%emt 0:00:21]} a6 {[%emt 0:02:50]} 8. a3 {[%emt 0:00:07]} cxd4 {[%emt 0:03:49]} 9. Nxd4 {[%emt 0:00:22]} Bc5 {[%emt 0:00:49]} 10. Qd2 {[%emt 0:04:37]} Nxd4 {[%emt 0:04:36]} 11. Bxd4 {[%emt 0:00:45]} Bxd4 {[%emt 0:00:16]} 12. Qxd4 {[%emt 0:00:06]} Qb6 {[%emt 0:00:03]} 13. Ne2 {[%emt 0:01:06]} Qc7 {[%emt 0:03:04]} 14. O-O-O {[%emt 0:05:04]} Nc5 {[%emt 0:01:23]} 15. Kb1 {[%emt 0:10:17]} Bd7 {[%emt 0:01:54]} 16. Nc3 {[%emt 0:06:15]} Rc8 {[%emt 0:01:59]} 17. Rc1 {[%emt 0:07:44]} O-O {[%emt 0:01:51]} 18. g3 {[%emt 0:12:17]} b5 {[%emt 0:01:30]} 19. Bd3 {[%emt 0:03:56]} Rb8 {[%emt 0:02:41]} 20. f5 {[%emt 0:03:38]} Na4 {[%emt 0:11:13]} 21. f6 {[%emt 0:08:26]} Nxc3+ {[%emt 0:03:09]} 22. bxc3 {[%emt 0:00:05]} g6 {[%emt 0:05:54]} 23. Qe3 {[%emt 0:13:59]} Kh8 {[%emt 0:04:08]} 24. Rcf1 {[%emt 0:09:00]} Rg8 {[%emt 0:19:33]} 25. Kb2 {[%emt 0:01:54]} a5 {[%emt 0:04:34]} 26. Rf4 {[%emt 0:02:36]} Rgc8 {[%emt 0:11:31]} 27. Qd4 {[%emt 0:03:03]} b4 {[%emt 0:02:22]} 28. cxb4 {[%emt 0:00:25]} axb4 {[%emt 0:02:20]} 29. axb4 {[%emt 0:01:17]} Rxb4+ {[%emt 0:06:44]} 30. Qxb4 {[%emt 0:06:30]} Rb8 31. Qxb8+ Qxb8+ 32. Kc1 {[%emt 0:01:00]} Qxe5 {[%emt 0:01:30]} 33. Kd2 {[%emt 0:00:30]} g5 {[%emt 0:00:30]} 34. Rf2 {[%emt 0:00:30]} d4 35. Re1 {[%emt 0:00:30]} Qa5+ {[%emt 0:01:00]} 36. Ke2 {[%emt 0:00:30]} Bb5 {[%emt 0:00:30]} 37. Rb1 {[%emt 0:00:30]} Bxd3+ {[%emt 0:00:30]} 38. Kxd3 {[%emt 0:00:30]} h5 {[%emt 0:00:30]} 39. Ke2 {[%emt 0:00:30]} Qc3 {[%emt 0:00:00]} 1/2-1/2